[Event "Titled Tuesday Blitz November 15 Late 2022"]
[White "Yanchenko, Roman"]
[Black "Alekseenko, Kirill"]
[WhiteFideId "4137329"]
[BlackFideId "4135539"]
[WhiteElo "2489"]
[BlackElo "2682"]
[Result "1-0"]
[Round "06"]
[TimeControl "180+1"]
[Date "2022.11.15"]
[WhiteClock "0:00:05"]
[BlackClock "0:00:05"]

1. d4 {[%clk 0:03:00]}  d5 {[%clk 0:02:56]} 2. c4 {[%clk 0:03:01]}  dxc4 {[%clk 0:02:57]} 3. Nc3 {[%clk 0:03:01]}  Nf6 {[%clk 0:02:53]} 4. e3 {[%clk 0:03:01]}  e5 {[%clk 0:02:39]} 5. Bxc4 {[%clk 0:02:59]}  exd4 {[%clk 0:02:37]} 6. exd4 {[%clk 0:03:00]}  Bd6 {[%clk 0:02:34]} 7. Nf3 {[%clk 0:02:58]}  O-O {[%clk 0:02:34]} 8. O-O {[%clk 0:02:58]}  Nc6 {[%clk 0:02:33]} 9. h3 {[%clk 0:02:57]}  h6 {[%clk 0:02:33]} 10. Re1 {[%clk 0:02:56]}  Bf5 {[%clk 0:02:26]} 11. a3 {[%clk 0:02:55]}  a6 {[%clk 0:02:20]} 12. Ba2 {[%clk 0:02:53]}  b5 {[%clk 0:02:04]} 13. Ne5 {[%clk 0:02:45]}  Na5 {[%clk 0:01:57]} 14. b4 {[%clk 0:02:40]}  Nc4 {[%clk 0:01:54]} 15. Nxc4 {[%clk 0:02:36]}  bxc4 {[%clk 0:01:54]} 16. Bxc4 {[%clk 0:02:36]}  Qd7 {[%clk 0:01:54]} 17. Qf3 {[%clk 0:02:30]}  Rae8 {[%clk 0:01:54]} 18. Rxe8 {[%clk 0:02:16]}  Rxe8 {[%clk 0:01:55]} 19. Be3 {[%clk 0:02:16]}  Ne4 {[%clk 0:01:54]} 20. Nxe4 {[%clk 0:02:13]}  Bxe4 {[%clk 0:01:55]} 21. Qh5 {[%clk 0:02:03]}  Re7 {[%clk 0:01:45]} 22. Bxa6 {[%clk 0:01:58]}  Bxg2 {[%clk 0:01:45]} 23. Kxg2 {[%clk 0:01:14]}  Qc6+ {[%clk 0:01:45]} 24. Qf3 {[%clk 0:01:15]}  Qxa6 {[%clk 0:01:46]} 25. Qd5 {[%clk 0:01:07]}  Rxe3 {[%clk 0:01:28]} 26. b5 {[%clk 0:01:04]}  Qa5 {[%clk 0:01:08]} 27. fxe3 {[%clk 0:01:04]}  Qd2+ {[%clk 0:01:08]} 28. Kf3 {[%clk 0:01:05]}  Qh2 {[%clk 0:01:02]} 29. Qa8+ {[%clk 0:01:03]}  Kh7 {[%clk 0:01:02]} 30. Qe4+ {[%clk 0:01:03]}  g6 {[%clk 0:01:02]} 31. Qg4 {[%clk 0:01:00]}  Qb2 {[%clk 0:00:59]} 32. Rf1 {[%clk 0:00:57]}  f5 {[%clk 0:00:50]} 33. Qg2 {[%clk 0:00:56]}  Qxb5 {[%clk 0:00:50]} 34. Qe2 {[%clk 0:00:49]}  Qd5+ {[%clk 0:00:47]} 35. Kf2 {[%clk 0:00:43]}  Bxa3 {[%clk 0:00:47]} 36. Qf3 {[%clk 0:00:39]}  Qa2+ {[%clk 0:00:44]} 37. Kg1 {[%clk 0:00:39]}  Bd6 {[%clk 0:00:41]} 38. Qf2 {[%clk 0:00:37]}  Qd5 {[%clk 0:00:40]} 39. Qg2 {[%clk 0:00:37]}  Qe6 {[%clk 0:00:39]} 40. Qf3 {[%clk 0:00:36]}  Qc4 {[%clk 0:00:37]} 41. Kg2 {[%clk 0:00:33]}  h5 {[%clk 0:00:33]} 42. e4 {[%clk 0:00:31]}  Qxd4 {[%clk 0:00:18]} 43. exf5 {[%clk 0:00:31]}  Qe5 {[%clk 0:00:18]} 44. fxg6+ {[%clk 0:00:30]}  Kh6 {[%clk 0:00:18]} 45. Rf2 {[%clk 0:00:16]}  c5 {[%clk 0:00:19]} 46. Re2 {[%clk 0:00:15]}  Qg5+ {[%clk 0:00:19]} 47. Kf1 {[%clk 0:00:14]}  Qc1+ {[%clk 0:00:20]} 48. Kf2 {[%clk 0:00:15]}  Qg5 {[%clk 0:00:15]} 49. g7 {[%clk 0:00:13]}  Kxg7 {[%clk 0:00:12]} 50. Qb7+ {[%clk 0:00:12]}  Kf6 {[%clk 0:00:11]} 51. Qf3+ {[%clk 0:00:11]}  Kg7 {[%clk 0:00:11]} 52. Qg2 {[%clk 0:00:12]}  Qxg2+ {[%clk 0:00:10]} 53. Kxg2 {[%clk 0:00:13]}  Kf6 {[%clk 0:00:11]} 54. Kf3 {[%clk 0:00:13]}  Be5 {[%clk 0:00:11]} 55. Ke4 {[%clk 0:00:13]}  Bd4 {[%clk 0:00:12]} 56. Rg2 {[%clk 0:00:13]}  Bc3 {[%clk 0:00:07]} 57. Rg3 {[%clk 0:00:13]}  Bd4 {[%clk 0:00:07]} 58. h4 {[%clk 0:00:12]}  Kf7 {[%clk 0:00:02]} 59. Rg5 {[%clk 0:00:11]}  Bf6 {[%clk 0:00:03]} 60. Rf5 {[%clk 0:00:06]}  Kg6 {[%clk 0:00:03]} 61. Rf4 {[%clk 0:00:07]}  c4 {[%clk 0:00:03]} 62. Kf3 {[%clk 0:00:07]}  c3 {[%clk 0:00:04]} 63. Rc4 {[%clk 0:00:07]}  Kf5 {[%clk 0:00:04]} 64. Rc5+ {[%clk 0:00:06]}  Be5 {[%clk 0:00:04]} 65. Ke3 {[%clk 0:00:06]}  Ke6 {[%clk 0:00:03]} 66. Ke4 {[%clk 0:00:06]}  Kd6 {[%clk 0:00:02]} 67. Rd5+ {[%clk 0:00:05]}  Kc6 {[%clk 0:00:03]} 68. Rd1 {[%clk 0:00:02]}  Bf6 {[%clk 0:00:03]} 69. Kd3 {[%clk 0:00:02]}  Kc5 {[%clk 0:00:03]} 70. Rf1 {[%clk 0:00:02]}  Bxh4 {[%clk 0:00:03]} 71. Rf5+ {[%clk 0:00:02]}  Kb4 {[%clk 0:00:04]} 72. Rf4+ {[%clk 0:00:02]}  Kb3 {[%clk 0:00:05]} 73. Rxh4 {[%clk 0:00:03]}  c2 {[%clk 0:00:05]} 74. Rh1 {[%clk 0:00:02]}  Kb2 {[%clk 0:00:06]} 75. Rh2 {[%clk 0:00:02]}  h4 {[%clk 0:00:04]} 76. Rxc2+ {[%clk 0:00:03]}  Kb1 {[%clk 0:00:05]} 77. Rh2 {[%clk 0:00:04]}  h3 {[%clk 0:00:06]} 78. Kc3 {[%clk 0:00:04]}  Ka1 {[%clk 0:00:05]} 79. Kb3 {[%clk 0:00:05]} 1-0


[Site "https://www.chess.com"]

[Event "Titled Tuesday Blitz November 15 Late 2022"]
[White "Yoo, Christopher Woojin"]
[Black "Korchmar, Vasiliy"]
[WhiteFideId "30909694"]
[BlackFideId "24131750"]
[WhiteElo "2463"]
[BlackElo "2370"]
[Result "1-0"]
[Round "06"]
[TimeControl "180+1"]
[Date "2022.11.15"]
[WhiteClock "0:00:18"]
[BlackClock "0:00:28"]

1. c4 {[%clk 0:02:52]}  c6 {[%clk 0:02:59]} 2. Nf3 {[%clk 0:02:51]}  d5 {[%clk 0:02:59]} 3. g3 {[%clk 0:02:51]}  g6 {[%clk 0:02:59]} 4. Bg2 {[%clk 0:02:52]}  Bg7 {[%clk 0:03:00]} 5. O-O {[%clk 0:02:49]}  e5 {[%clk 0:03:00]} 6. cxd5 {[%clk 0:02:49]}  cxd5 {[%clk 0:03:01]} 7. d3 {[%clk 0:02:46]}  Nc6 {[%clk 0:03:00]} 8. Nc3 {[%clk 0:02:40]}  Nge7 {[%clk 0:03:00]} 9. Bd2 {[%clk 0:02:34]}  O-O {[%clk 0:02:58]} 10. Rc1 {[%clk 0:02:34]}  h6 {[%clk 0:02:52]} 11. Qb3 {[%clk 0:02:31]}  Be6 {[%clk 0:02:41]} 12. Qa3 {[%clk 0:02:27]}  f5 {[%clk 0:02:29]} 13. e3 {[%clk 0:01:39]}  e4 {[%clk 0:02:19]} 14. Nd4 {[%clk 0:01:39]}  Nxd4 {[%clk 0:02:15]} 15. exd4 {[%clk 0:01:39]}  Nc6 {[%clk 0:02:09]} 16. dxe4 {[%clk 0:01:29]}  fxe4 {[%clk 0:02:08]} 17. Be3 {[%clk 0:01:28]}  Nxd4 {[%clk 0:01:52]} 18. Rfd1 {[%clk 0:01:01]}  Nf3+ {[%clk 0:01:47]} 19. Bxf3 {[%clk 0:01:01]}  exf3 {[%clk 0:01:46]} 20. Qc5 {[%clk 0:00:56]}  Kh8 {[%clk 0:01:12]} 21. Nxd5 {[%clk 0:00:48]}  Rc8 {[%clk 0:01:13]} 22. Nc7 {[%clk 0:00:42]}  Qf6 {[%clk 0:00:55]} 23. Bd4 {[%clk 0:00:41]}  Qf7 {[%clk 0:00:48]} 24. Re1 {[%clk 0:00:21]}  Rxc7 {[%clk 0:00:33]} 25. Bxg7+ {[%clk 0:00:18]}  Kxg7 {[%clk 0:00:28]} 26. Qe5+ {[%clk 0:00:18]} 1-0


[Site "https://www.chess.com"]

[Event "Titled Tuesday Blitz November 15 Late 2022"]
[White "Young, Ryan"]
[Black "Hajiyev, Kanan"]
[WhiteFideId "2049945"]
[BlackFideId "13404148"]
[WhiteElo "2305"]
[BlackElo "2118"]
[Result "0-1"]
[Round "06"]
[TimeControl "180+1"]
[Date "2022.11.16"]
[WhiteClock "0:00:02"]
[BlackClock "0:01:13"]

1. e4 {[%clk 0:03:00]}  c6 {[%clk 0:02:52]} 2. d4 {[%clk 0:02:56]}  d5 {[%clk 0:02:52]} 3. exd5 {[%clk 0:02:56]}  cxd5 {[%clk 0:02:53]} 4. Bd3 {[%clk 0:02:57]}  Nc6 {[%clk 0:02:53]} 5. c3 {[%clk 0:02:55]}  Qc7 {[%clk 0:02:53]} 6. h3 {[%clk 0:02:51]}  Nf6 {[%clk 0:02:53]} 7. Nf3 {[%clk 0:02:50]}  g6 {[%clk 0:02:53]} 8. O-O {[%clk 0:02:50]}  Bg7 {[%clk 0:02:54]} 9. Re1 {[%clk 0:02:50]}  O-O {[%clk 0:02:54]} 10. Nbd2 {[%clk 0:02:47]}  Bf5 {[%clk 0:02:54]} 11. Bf1 {[%clk 0:02:47]}  Ne4 {[%clk 0:02:53]} 12. g4 {[%clk 0:02:43]}  Nxd2 {[%clk 0:02:53]} 13. Bxd2 {[%clk 0:02:37]}  Bd7 {[%clk 0:02:48]} 14. Bg2 {[%clk 0:02:37]}  b5 {[%clk 0:02:45]} 15. a3 {[%clk 0:02:34]}  e6 {[%clk 0:02:42]} 16. b4 {[%clk 0:02:26]}  a5 {[%clk 0:02:41]} 17. Qe2 {[%clk 0:02:15]}  Nd8 {[%clk 0:02:40]} 18. Ne5 {[%clk 0:02:09]}  Nb7 {[%clk 0:02:40]} 19. h4 {[%clk 0:01:59]}  Nd6 {[%clk 0:02:35]} 20. h5 {[%clk 0:01:49]}  Nc4 {[%clk 0:02:35]} 21. Nxc4 {[%clk 0:01:47]}  Qxc4 {[%clk 0:02:32]} 22. Qxc4 {[%clk 0:01:46]}  bxc4 {[%clk 0:02:32]} 23. Bf3 {[%clk 0:01:22]}  Ra6 {[%clk 0:02:28]} 24. Rac1 {[%clk 0:01:04]}  axb4 {[%clk 0:02:23]} 25. axb4 {[%clk 0:01:04]}  Ra2 {[%clk 0:02:24]} 26. Bf4 {[%clk 0:01:04]}  Rfa8 {[%clk 0:02:17]} 27. Bd6 {[%clk 0:01:00]}  Rb2 {[%clk 0:02:09]} 28. Re2 {[%clk 0:00:55]}  Rxe2 {[%clk 0:02:06]} 29. Bxe2 {[%clk 0:00:55]}  Ra2 {[%clk 0:02:07]} 30. Kf1 {[%clk 0:00:54]}  Ba4 {[%clk 0:02:06]} 31. hxg6 {[%clk 0:00:48]}  hxg6 {[%clk 0:02:06]} 32. f4 {[%clk 0:00:40]}  Bh6 {[%clk 0:01:52]} 33. g5 {[%clk 0:00:40]}  Bf8 {[%clk 0:01:53]} 34. Bxf8 {[%clk 0:00:31]}  Kxf8 {[%clk 0:01:54]} 35. Ke1 {[%clk 0:00:29]}  Ke7 {[%clk 0:01:53]} 36. Kf2 {[%clk 0:00:25]}  Bc2 {[%clk 0:01:51]} 37. Ke3 {[%clk 0:00:23]}  Kd6 {[%clk 0:01:51]} 38. Rh1 {[%clk 0:00:18]}  Ra3 {[%clk 0:01:45]} 39. Kd2 {[%clk 0:00:17]}  Be4 {[%clk 0:01:45]} 40. Rh7 {[%clk 0:00:15]}  Ra2+ {[%clk 0:01:45]} 41. Ke3 {[%clk 0:00:15]}  Ke7 {[%clk 0:01:44]} 42. Rh8 {[%clk 0:00:10]}  Rc2 {[%clk 0:01:44]} 43. Rb8 {[%clk 0:00:07]}  Rxc3+ {[%clk 0:01:44]} 44. Kf2 {[%clk 0:00:07]}  Rb3 {[%clk 0:01:44]} 45. b5 {[%clk 0:00:07]}  Rb2 {[%clk 0:01:44]} 46. Ke1 {[%clk 0:00:07]}  c3 {[%clk 0:01:44]} 47. b6 {[%clk 0:00:07]}  Rb1+ {[%clk 0:01:44]} 48. Kf2 {[%clk 0:00:07]}  c2 {[%clk 0:01:44]} 49. Rc8 {[%clk 0:00:07]}  Rxb6 {[%clk 0:01:44]} 50. Ke3 {[%clk 0:00:07]}  Rb2 {[%clk 0:01:39]} 51. Bd3 {[%clk 0:00:03]}  Rb3 {[%clk 0:01:39]} 52. Rxc2 {[%clk 0:00:03]}  Rxd3+ {[%clk 0:01:38]} 53. Kf2 {[%clk 0:00:02]}  Rxd4 {[%clk 0:01:39]} 54. Ra2 {[%clk 0:00:02]}  Bf5 {[%clk 0:01:38]} 55. Ra7+ {[%clk 0:00:03]}  Kf8 {[%clk 0:01:38]} 56. Kg3 {[%clk 0:00:04]}  Rd3+ {[%clk 0:01:37]} 57. Kf2 {[%clk 0:00:03]}  Kg7 {[%clk 0:01:36]} 58. Rb7 {[%clk 0:00:03]}  d4 {[%clk 0:01:36]} 59. Ra7 {[%clk 0:00:03]}  Rd2+ {[%clk 0:01:33]} 60. Kg3 {[%clk 0:00:03]}  d3 {[%clk 0:01:31]} 61. Rd7 {[%clk 0:00:01]}  Re2 {[%clk 0:01:29]} 62. Kf3 {[%clk 0:00:01]}  Ra2 {[%clk 0:01:25]} 63. Rd8 {[%clk 0:00:01]}  d2 {[%clk 0:01:25]} 64. Kg3 {[%clk 0:00:02]}  Be4 {[%clk 0:01:18]} 65. Kh4 {[%clk 0:00:02]}  Bd5 {[%clk 0:01:17]} 66. f5 {[%clk 0:00:01]}  gxf5 {[%clk 0:01:17]} 67. g6 {[%clk 0:00:02]}  fxg6 {[%clk 0:01:17]} 68. Rd7+ {[%clk 0:00:03]}  Kf6 {[%clk 0:01:16]} 69. Kg3 {[%clk 0:00:03]}  d1=Q {[%clk 0:01:14]} 70. Kh4 {[%clk 0:00:02]}  Qg4# {[%clk 0:01:13]} 0-1


[Site "https://www.chess.com"]

[Event "Titled Tuesday Blitz November 15 Late 2022"]
[White "Yurovskykh, Oleksandr"]
[Black "Huber, Benedikt"]
[WhiteFideId "14134020"]
[BlackFideId "12923583"]
[WhiteElo "2265"]
[BlackElo "2199"]
[Result "1-0"]
[Round "06"]
[TimeControl "180+1"]
[Date "2022.11.16"]
[WhiteClock "0:02:06"]
[BlackClock "0:01:59"]

1. d4 {[%clk 0:03:00]}  e6 {[%clk 0:02:56]} 2. Bf4 {[%clk 0:02:58]}  f5 {[%clk 0:02:51]} 3. e3 {[%clk 0:02:57]}  Nf6 {[%clk 0:02:51]} 4. Nf3 {[%clk 0:02:54]}  g6 {[%clk 0:02:52]} 5. Be2 {[%clk 0:02:53]}  Bg7 {[%clk 0:02:53]} 6. O-O {[%clk 0:02:53]}  O-O {[%clk 0:02:53]} 7. c4 {[%clk 0:02:52]}  d6 {[%clk 0:02:54]} 8. h3 {[%clk 0:02:52]}  Nc6 {[%clk 0:02:50]} 9. Nc3 {[%clk 0:02:52]}  Qe7 {[%clk 0:02:49]} 10. Bh2 {[%clk 0:02:44]}  Nd8 {[%clk 0:02:49]} 11. Rc1 {[%clk 0:02:44]}  Nf7 {[%clk 0:02:49]} 12. Qc2 {[%clk 0:02:43]}  e5 {[%clk 0:02:47]} 13. dxe5 {[%clk 0:02:35]}  dxe5 {[%clk 0:02:48]} 14. Nd5 {[%clk 0:02:35]}  Nxd5 {[%clk 0:02:08]} 15. cxd5 {[%clk 0:02:36]}  Bd7 {[%clk 0:02:09]} 16. Qxc7 {[%clk 0:02:28]}  e4 {[%clk 0:02:09]} 17. Nd4 {[%clk 0:02:23]}  Rfc8 {[%clk 0:02:07]} 18. Qxb7 {[%clk 0:02:18]}  Bxd4 {[%clk 0:02:04]} 19. exd4 {[%clk 0:02:15]}  Nd6 {[%clk 0:02:05]} 20. Qb4 {[%clk 0:02:11]}  Rxc1 {[%clk 0:01:59]} 21. Rxc1 {[%clk 0:02:11]}  Nc8 {[%clk 0:01:59]} 22. Rxc8+ {[%clk 0:02:06]} 1-0


[Site "https://www.chess.com"]

[Event "Titled Tuesday Blitz November 15 Late 2022"]
[White "Zhalmakhanov, Ramazan"]
[Black "Jarmula, Lukasz"]
[WhiteFideId "13706357"]
[BlackFideId "1160664"]
[WhiteElo "2405"]
[BlackElo "2357"]
[Result "1-0"]
[Round "06"]
[TimeControl "180+1"]
[Date "2022.11.15"]
[WhiteClock "0:02:12"]
[BlackClock "0:01:39"]

1. e4 {[%clk 0:02:57]}  e5 {[%clk 0:02:59]} 2. Nf3 {[%clk 0:02:57]}  Nc6 {[%clk 0:02:59]} 3. Bb5 {[%clk 0:02:58]}  a6 {[%clk 0:02:59]} 4. Ba4 {[%clk 0:02:58]}  Nf6 {[%clk 0:02:59]} 5. O-O {[%clk 0:02:58]}  Be7 {[%clk 0:02:59]} 6. d4 {[%clk 0:02:52]}  exd4 {[%clk 0:02:57]} 7. e5 {[%clk 0:02:52]}  Ne4 {[%clk 0:02:56]} 8. Nxd4 {[%clk 0:02:53]}  O-O {[%clk 0:02:52]} 9. Nf5 {[%clk 0:02:50]}  d5 {[%clk 0:02:52]} 10. Bxc6 {[%clk 0:02:46]}  bxc6 {[%clk 0:02:49]} 11. Nxe7+ {[%clk 0:02:36]}  Qxe7 {[%clk 0:02:48]} 12. Re1 {[%clk 0:02:36]}  Rd8 {[%clk 0:02:39]} 13. Bf4 {[%clk 0:02:31]}  Bf5 {[%clk 0:02:29]} 14. Nd2 {[%clk 0:02:31]}  Nxd2 {[%clk 0:02:25]} 15. Qxd2 {[%clk 0:02:31]}  d4 {[%clk 0:02:24]} 16. Bg5 {[%clk 0:02:31]}  f6 {[%clk 0:02:10]} 17. exf6 {[%clk 0:02:30]}  Qf7 {[%clk 0:02:10]} 18. Re7 {[%clk 0:02:26]}  Qh5 {[%clk 0:02:01]} 19. Rxg7+ {[%clk 0:02:23]}  Kh8 {[%clk 0:02:01]} 20. Re1 {[%clk 0:02:20]}  Rg8 {[%clk 0:01:53]} 21. Qf4 {[%clk 0:02:18]}  Bg6 {[%clk 0:01:43]} 22. Rxg8+ {[%clk 0:02:13]}  Rxg8 {[%clk 0:01:39]} 23. f7 {[%clk 0:02:12]} 1-0


[Site "https://www.chess.com"]

[Event "Titled Tuesday Blitz November 15 Late 2022"]
[White "Zhou, Qiyu"]
[Black "Adewumi, Tanitoluwa"]
[WhiteFideId "505161"]
[BlackFideId "30966396"]
[WhiteElo "2101"]
[BlackElo "2532"]
[Result "1/2-1/2"]
[Round "06"]
[TimeControl "180+1"]
[Date "2022.11.16"]
[WhiteClock "0:00:08"]
[BlackClock "0:00:05"]

1. Na3 {[%clk 0:03:00]}  d5 {[%clk 0:02:43]} 2. d4 {[%clk 0:02:59]}  Nf6 {[%clk 0:02:34]} 3. Nf3 {[%clk 0:02:53]}  Bf5 {[%clk 0:02:33]} 4. c3 {[%clk 0:02:52]}  e6 {[%clk 0:02:32]} 5. Nc2 {[%clk 0:02:52]}  h6 {[%clk 0:02:32]} 6. e3 {[%clk 0:02:53]}  c5 {[%clk 0:02:32]} 7. Bd3 {[%clk 0:02:51]}  Bxd3 {[%clk 0:02:32]} 8. Qxd3 {[%clk 0:02:51]}  Nc6 {[%clk 0:02:33]} 9. O-O {[%clk 0:02:50]}  Bd6 {[%clk 0:02:33]} 10. b3 {[%clk 0:02:50]}  O-O {[%clk 0:02:32]} 11. h3 {[%clk 0:02:50]}  Ne4 {[%clk 0:02:32]} 12. Bb2 {[%clk 0:02:49]}  Rc8 {[%clk 0:02:32]} 13. dxc5 {[%clk 0:02:38]}  Nxc5 {[%clk 0:02:30]} 14. Qe2 {[%clk 0:02:36]}  Na5 {[%clk 0:02:16]} 15. Ncd4 {[%clk 0:02:25]}  a6 {[%clk 0:02:02]} 16. b4 {[%clk 0:02:07]}  Na4 {[%clk 0:01:28]} 17. bxa5 {[%clk 0:02:04]}  Qxa5 {[%clk 0:01:29]} 18. Nb3 {[%clk 0:01:58]}  Qc7 {[%clk 0:01:23]} 19. Rac1 {[%clk 0:01:56]}  Qc4 {[%clk 0:01:22]} 20. Qd2 {[%clk 0:01:43]}  Rfd8 {[%clk 0:01:01]} 21. Ba1 {[%clk 0:01:27]}  Ba3 {[%clk 0:00:57]} 22. Rc2 {[%clk 0:01:20]}  b5 {[%clk 0:00:55]} 23. Qd4 {[%clk 0:01:09]}  f6 {[%clk 0:00:50]} 24. Rd2 {[%clk 0:00:45]}  e5 {[%clk 0:00:36]} 25. Qxc4 {[%clk 0:00:42]}  dxc4 {[%clk 0:00:34]} 26. Rxd8+ {[%clk 0:00:38]}  Rxd8 {[%clk 0:00:33]} 27. Nbd2 {[%clk 0:00:39]}  Rd3 {[%clk 0:00:28]} 28. Rb1 {[%clk 0:00:30]}  Kf7 {[%clk 0:00:21]} 29. Kf1 {[%clk 0:00:30]}  Ke6 {[%clk 0:00:19]} 30. Ke2 {[%clk 0:00:30]}  h5 {[%clk 0:00:16]} 31. Ne1 {[%clk 0:00:30]}  Rd7 {[%clk 0:00:06]} 32. Nc2 {[%clk 0:00:30]}  Bc5 {[%clk 0:00:05]} 33. Rd1 {[%clk 0:00:27]}  f5 {[%clk 0:00:03]} 34. Nf3 {[%clk 0:00:20]}  Rd3 {[%clk 0:00:03]} 35. Ng5+ {[%clk 0:00:15]}  Kf6 {[%clk 0:00:03]} 36. h4 {[%clk 0:00:14]}  Nxc3+ {[%clk 0:00:02]} 37. Bxc3 {[%clk 0:00:14]}  Rxc3 {[%clk 0:00:03]} 38. Kd2 {[%clk 0:00:05]}  Rd3+ {[%clk 0:00:02]} 39. Ke2 {[%clk 0:00:05]}  e4 {[%clk 0:00:02]} 40. Nh3 {[%clk 0:00:05]}  Ke5 {[%clk 0:00:02]} 41. Nf4 {[%clk 0:00:05]}  Bb6 {[%clk 0:00:02]} 42. Ne1 {[%clk 0:00:04]}  Rxd1 {[%clk 0:00:01]} 43. Kxd1 {[%clk 0:00:05]}  Ba5 {[%clk 0:00:01]} 44. Nc2 {[%clk 0:00:05]}  g6 {[%clk 0:00:01]} 45. Nd4 {[%clk 0:00:06]}  Kf6 {[%clk 0:00:02]} 46. Nd5+ {[%clk 0:00:06]}  Ke5 {[%clk 0:00:02]} 47. Nf4 {[%clk 0:00:07]}  Bb6 {[%clk 0:00:02]} 48. Nxg6+ {[%clk 0:00:06]}  Kf6 {[%clk 0:00:03]} 49. Nf4 {[%clk 0:00:06]}  Ke5 {[%clk 0:00:03]} 50. Nfe2 {[%clk 0:00:06]}  b4 {[%clk 0:00:03]} 51. Kc2 {[%clk 0:00:07]}  a5 {[%clk 0:00:04]} 52. Nc6+ {[%clk 0:00:07]}  Kd5 {[%clk 0:00:04]} 53. Ncd4 {[%clk 0:00:08]}  Ke5 {[%clk 0:00:04]} 54. Nc6+ {[%clk 0:00:08]}  Kd6 {[%clk 0:00:04]} 55. Ncd4 {[%clk 0:00:08]}  Ke5 {[%clk 0:00:05]} 1/2-1/2


[Site "https://www.chess.com"]

[Event "Titled Tuesday Blitz November 15 Late 2022"]
[White "Adewumi, Tanitoluwa"]
[Black "Stanisz, Patryk"]
[WhiteFideId "30966396"]
[BlackFideId "1123106"]
[WhiteElo "2528"]
[BlackElo "2069"]
[Result "1-0"]
[Round "07"]
[TimeControl "180+1"]
[Date "2022.11.16"]
[WhiteClock "0:00:07"]
[BlackClock "0:00:07"]

1. e4 {[%clk 0:02:25]}  c5 {[%clk 0:02:58]} 2. Nf3 {[%clk 0:02:24]}  Nc6 {[%clk 0:02:59]} 3. Bb5 {[%clk 0:02:12]}  g6 {[%clk 0:02:58]} 4. Bxc6 {[%clk 0:02:11]}  dxc6 {[%clk 0:02:59]} 5. d3 {[%clk 0:02:11]}  Bg7 {[%clk 0:03:00]} 6. h3 {[%clk 0:02:11]}  Nf6 {[%clk 0:03:00]} 7. Be3 {[%clk 0:02:11]}  Nd7 {[%clk 0:03:01]} 8. Nc3 {[%clk 0:02:12]}  e5 {[%clk 0:03:01]} 9. Qd2 {[%clk 0:02:12]}  h6 {[%clk 0:03:01]} 10. Nh2 {[%clk 0:02:13]}  Qe7 {[%clk 0:03:02]} 11. O-O {[%clk 0:02:13]}  Nf8 {[%clk 0:03:01]} 12. f4 {[%clk 0:02:11]}  exf4 {[%clk 0:03:02]} 13. Bxf4 {[%clk 0:02:12]}  Ne6 {[%clk 0:03:03]} 14. Bg3 {[%clk 0:02:12]}  Nd4 {[%clk 0:03:02]} 15. Rf2 {[%clk 0:02:07]}  Be6 {[%clk 0:03:00]} 16. Raf1 {[%clk 0:02:06]}  O-O-O {[%clk 0:03:00]} 17. Qf4 {[%clk 0:02:02]}  Kd7 {[%clk 0:02:47]} 18. Ng4 {[%clk 0:01:43]}  g5 {[%clk 0:02:19]} 19. Ne5+ {[%clk 0:01:11]}  Ke8 {[%clk 0:02:06]} 20. Qe3 {[%clk 0:01:10]}  h5 {[%clk 0:01:38]} 21. Nxf7 {[%clk 0:01:02]}  Nxc2 {[%clk 0:01:18]} 22. Qxg5 {[%clk 0:00:33]}  Bd4 {[%clk 0:00:15]} 23. Qxe7+ {[%clk 0:00:15]}  Kxe7 {[%clk 0:00:16]} 24. Bh4+ {[%clk 0:00:14]}  Kd7 {[%clk 0:00:14]} 25. Nxd8 {[%clk 0:00:11]}  Rxd8 {[%clk 0:00:11]} 26. Bxd8 {[%clk 0:00:11]}  Kxd8 {[%clk 0:00:12]} 27. Kh2 {[%clk 0:00:10]}  Bxf2 {[%clk 0:00:06]} 28. Rxf2 {[%clk 0:00:11]}  Nb4 {[%clk 0:00:06]} 29. Rd2 {[%clk 0:00:07]}  Ke7 {[%clk 0:00:06]} 30. a3 {[%clk 0:00:07]}  Na6 {[%clk 0:00:04]} 31. Kg3 {[%clk 0:00:07]}  Kf6 {[%clk 0:00:04]} 32. Kh4 {[%clk 0:00:07]}  b5 {[%clk 0:00:03]} 33. Kxh5 {[%clk 0:00:06]}  b4 {[%clk 0:00:04]} 34. Ne2 {[%clk 0:00:06]}  Nc7 {[%clk 0:00:03]} 35. g4 {[%clk 0:00:06]}  Ke5 {[%clk 0:00:03]} 36. g5 {[%clk 0:00:06]}  a5 {[%clk 0:00:02]} 37. g6 {[%clk 0:00:06]}  a4 {[%clk 0:00:02]} 38. axb4 {[%clk 0:00:06]}  cxb4 {[%clk 0:00:02]} 39. Kh6 {[%clk 0:00:06]}  Nb5 {[%clk 0:00:02]} 40. g7 {[%clk 0:00:06]}  a3 {[%clk 0:00:02]} 41. bxa3 {[%clk 0:00:05]}  bxa3 {[%clk 0:00:03]} 42. Nc1 {[%clk 0:00:03]}  Kd4 {[%clk 0:00:02]} 43. Kh7 {[%clk 0:00:03]}  Kc3 {[%clk 0:00:02]} 44. Ra2 {[%clk 0:00:02]}  Kb4 {[%clk 0:00:02]} 45. g8=Q {[%clk 0:00:02]}  Bxg8+ {[%clk 0:00:03]} 46. Kxg8 {[%clk 0:00:03]}  Nc3 {[%clk 0:00:03]} 47. Ra1 {[%clk 0:00:03]}  Na4 {[%clk 0:00:03]} 48. h4 {[%clk 0:00:03]}  Nb2 {[%clk 0:00:04]} 49. h5 {[%clk 0:00:04]}  Nxd3 {[%clk 0:00:04]} 50. Nxd3+ {[%clk 0:00:03]}  Kb3 {[%clk 0:00:04]} 51. Nc1+ {[%clk 0:00:04]}  Kb2 {[%clk 0:00:05]} 52. Ra2+ {[%clk 0:00:05]}  Kxc1 {[%clk 0:00:05]} 53. Rxa3 {[%clk 0:00:06]}  Kb1 {[%clk 0:00:06]} 54. Rc3 {[%clk 0:00:06]}  c5 {[%clk 0:00:07]} 55. Rxc5 {[%clk 0:00:07]} 1-0


[Site "https://www.chess.com"]

[Event "Titled Tuesday Blitz November 15 Late 2022"]
[White "Al-Tarboush, Ward"]
[Black "Prydun, Andriy"]
[WhiteFideId "7601450"]
[BlackFideId "14145898"]
[WhiteElo "2273"]
[BlackElo "2163"]
[Result "0-1"]
[Round "07"]
[TimeControl "180+1"]
[Date "2022.11.16"]
[WhiteClock "0:02:22"]
[BlackClock "0:01:45"]

1. e4 {[%clk 0:03:00]}  c6 {[%clk 0:02:55]} 2. Nf3 {[%clk 0:03:01]}  d5 {[%clk 0:02:56]} 3. Nc3 {[%clk 0:03:01]}  Bg4 {[%clk 0:02:55]} 4. h3 {[%clk 0:03:01]}  Bxf3 {[%clk 0:02:55]} 5. Qxf3 {[%clk 0:03:02]}  e6 {[%clk 0:02:55]} 6. d4 {[%clk 0:03:03]}  Nd7 {[%clk 0:02:54]} 7. Bd3 {[%clk 0:03:02]}  dxe4 {[%clk 0:02:52]} 8. Nxe4 {[%clk 0:03:02]}  Ngf6 {[%clk 0:02:53]} 9. O-O {[%clk 0:03:02]}  Nxe4 {[%clk 0:02:51]} 10. Qxe4 {[%clk 0:03:03]}  Nf6 {[%clk 0:02:52]} 11. Qe5 {[%clk 0:03:03]}  Bd6 {[%clk 0:02:50]} 12. Qg5 {[%clk 0:03:03]}  O-O {[%clk 0:02:50]} 13. c3 {[%clk 0:03:04]}  Nd7 {[%clk 0:02:47]} 14. Qh5 {[%clk 0:03:03]}  Nf6 {[%clk 0:02:47]} 15. Qh4 {[%clk 0:03:03]}  Be7 {[%clk 0:02:47]} 16. Bg5 {[%clk 0:03:03]}  h6 {[%clk 0:02:46]} 17. Bxh6 {[%clk 0:03:03]}  gxh6 {[%clk 0:02:42]} 18. Qxh6 {[%clk 0:03:04]}  Re8 {[%clk 0:02:39]} 19. Rae1 {[%clk 0:03:04]}  Bf8 {[%clk 0:02:39]} 20. Qg5+ {[%clk 0:03:01]}  Bg7 {[%clk 0:02:37]} 21. f4 {[%clk 0:02:58]}  Nd5 {[%clk 0:02:28]} 22. Qg4 {[%clk 0:02:57]}  f5 {[%clk 0:02:28]} 23. Qg6 {[%clk 0:02:57]}  Qf6 {[%clk 0:02:28]} 24. Qh5 {[%clk 0:02:57]}  Qh6 {[%clk 0:02:23]} 25. Qf3 {[%clk 0:02:57]}  Kf7 {[%clk 0:02:21]} 26. g4 {[%clk 0:02:56]}  fxg4 {[%clk 0:02:19]} 27. hxg4 {[%clk 0:02:57]}  Rh8 {[%clk 0:02:18]} 28. Qg2 {[%clk 0:02:54]}  Rag8 {[%clk 0:02:14]} 29. g5 {[%clk 0:02:54]}  Qh4 {[%clk 0:02:12]} 30. f5 {[%clk 0:02:52]}  Bxd4+ {[%clk 0:01:46]} 31. cxd4 {[%clk 0:02:51]}  Rxg5 {[%clk 0:01:47]} 32. fxe6+ {[%clk 0:02:46]}  Ke8 {[%clk 0:01:45]} 33. Bg6+ {[%clk 0:02:46]}  Kd8 {[%clk 0:01:46]} 34. e7+ {[%clk 0:02:22]}  Nxe7 {[%clk 0:01:45]} 0-1


[Site "https://www.chess.com"]